Cogmind - Beta 16 @@@ ROGUE MODE // 2025.12.16 @ 20:21:21 Player: Artackni Result: Destroyed by G-47 Trooper with Particle Gun Performance ------------- Evolutions (0) 0 Regions Visited (2) 400 Robots Destroyed (7) 35 Value Destroyed (132) 132 Prototype IDs (0) 0 Alien Tech Used (0) 0 Bonus (81) 81 TOTAL SCORE: 648 Bonus ------- Follower Combat Kills 81 Cogmind --------- Core Integrity 0/250 Matter 266/300 Energy 100/100 System Corruption 0% Temperature Cool (9) Movement Core (50) Location -10/Mines Parts ------- > --- POWER (1) -------- (None) > --- PROPULSION (2) --- (None) > --- UTILITY (2) ------ (None) > --- WEAPON (2) ------- (None) > --- INVENTORY (5) ---- Ion Engine Hover Unit Hover Unit Improved Terrain Scanner ECM Suite Peak State ------------ > --- POWER ------------ Ion Engine > --- PROPULSION ------- Aluminum Leg Aluminum Leg > --- UTILITY ---------- Improved Terrain Scanner Seismic Detector > --- WEAPON ----------- EM Pulse Gun EM Pulse Gun > --- INVENTORY -------- Aluminum Leg [Rating: 9] Favorites ----------- Power Light Ion Engine Engine Light Ion Engine Propulsion Hover Unit Leg Aluminum Leg Hover Unit Hover Unit Utility Seismic Detector Device Seismic Detector Weapon EM Pulse Gun Energy Gun EM Pulse Gun Launcher Rocket Launcher Build | -11 -10 -10 ------- Run | Yrd Mat Min Slots Evolved . | . . . Power . | . . . Propulsion . | . . . Utility . | . . . Weapon . | . . . Parts Attached 12 | 7 4 1 Power 2 | 1 1 . Engine 2 | 1 1 . Core . | . . . Reactor . | . . . Propulsion 4 | 2 2 . Treads . | . . . Leg 2 | 2 . . Wheel . | . . . Hover 2 | . 2 . Flight . | . . . Utility 3 | 2 1 . Device 3 | 2 1 . Storage . | . . . Processor . | . . . Hackware . | . . . Protection . | . . . Artifact . | . . . Weapon 3 | 2 . 1 Energy Gun 2 | 2 . . Energy Cannon . | . . . Ballistic Gun . | . . . Ballistic Cannon . | . . . Launcher 1 | . . 1 Special Weapon . | . . . Impact Weapon . | . . . Slashing Weapon . | . . . Piercing Weapon . | . . . Special Melee Weapon . | . . . Unidentified Prototypes . | . . . Parts Lost 6 | . . 6 Power 1 | . . 1 Propulsion 1 | . . 1 Utility 1 | . . 1 Weapon 3 | . . 3 Highest Loss Streak 6 | . . 6 To Critical Strikes . | . . . Average Backups 3 | . 4 5 Power . | . . 1 Propulsion . | . 1 1 Utility . | . . 1 Weapon 1 | . 1 1 Tool/Special . | . . . Unused Backups 4 | . 1 3 Power . | . . . Propulsion 2 | . 1 1 Utility . | . . . Weapon 2 | . . 2 Tool/Special . | . . . Average Slot Usage (%) 87 | . 100 81 Engine 12 | . 14 11 Leg 3 | . 10 . Hover 21 | . 17 22 Device 24 | . 28 22 Energy Gun 23 | . 28 21 Peak Build Rating 9 | 9 9 8 Average Rating 5 | 3 7 5 On Entrance 5 | . 9 7 Avg Prop Armor Cover (%) . | . . . Naked Turns 39 | . . 39 Heaviest Build 11 | 11 11 10 Greatest Support 20 | 20 20 12 Greatest Overweight (x) 1 | . 1 . Average Overweight (x) . | . . . Largest Inventory Capacity 5 | 5 5 5 Average Capacity 5 | 5 5 5 Most Carried 5 | 2 5 5 Average Carried 3 | . 4 4 Final Capacity 5 | 5 5 5 Final Carried 5 | 2 5 5 Class Distribution -------------------- 55% | Scavenger-Mutant 44% | Mutant Dominant Class ---------------- Scavenger-Mutant | -10/Materials Scavenger-Mutant | -10/Mines Resources | -11 -10 -10 ----------- Run | Yrd Mat Min Matter Collected 320 | 270 . 50 Remotely . | . . . Salvage Created 178 | 78 18 82 Parts 18 | 8 3 7 Haulers Intercepted . | . . . Recyclers Shooed . | . . . Parts Field Recycled . | . . . Retrieved Matter . | . . . Parts Self-Destructed . | . . . Prevented . | . . . Parts Restored . | . . . Kills | -11 -10 -10 ------- Run | Yrd Mat Min Combat Hostiles Destroyed 5 | 1 . 4 Guns 4 | 1 . 3 AOE 1 | . . 1 Classes Destroyed 5 | 2 1 2 Tunneler 1 | 1 . . Watcher 1 | . 1 . Swarmer 3 | . . 3 Grunt 1 | 1 . . Sentry 1 | . . 1 Best Kill Streak 3 | 2 1 3 Combat Bots Only 3 | 1 . 3 Max Kills in Single Turn 1 | 1 1 1 Gunslinging . | . . . Exploded 1 | . . 1 Melee . | . . . Uniques/NPCs Destroyed . | . . . Combat | -11 -10 -10 -------- Run | Yrd Mat Min Hostile Shots Fired 52 | 4 . 48 Missed 14 | 2 . 12 Hits 38 | 2 . 36 Projectile 38 | 2 . 36 Critical Strikes 1 | . . 1 Damage Taken 566 | 24 . 542 Core 260 | . . 260 Absorbed by Shields . | . . . Core Remaining (%) 100 | 100 . . Volleys Fired 17 | 5 1 11 Largest 2 | 2 2 2 Hottest 80 | 80 80 80 Shots Fired 31 | 10 2 19 Gun 27 | 10 2 15 Cannon . | . . . Launcher 4 | . . 4 Special . | . . . Kinetic . | . . . Thermal . | . . . Explosive 4 | . . 4 Electromagnetic 27 | 10 2 15 Robot Hit Streak 4 | 4 2 4 Robot Miss Streak 2 | 2 . 2 Penetration Max . | . . . Secondary Targets 1 | . . 1 Max Gunslinging Chain 1 | . . 1 Shots Hit Robots 16 | 5 1 10 Core Hits 9 | 2 1 6 Critical Kills . | . . . Critical Parts Destroyed . | . . . Critical Strikes . | . . . Melee Attacks . | . . . Impact . | . . . Slashing . | . . . Piercing . | . . . Sneak Attacks . | . . . Combat Hostiles . | . . . Follow-up Attacks . | . . . Damage Inflicted 296 | 63 20 213 Guns 173 | 63 20 90 Cannons . | . . . Explosions 123 | . . 123 Melee . | . . . Ramming . | . . . Kinetic . | . . . Thermal . | . . . Explosive 123 | . . 123 Electromagnetic 173 | 63 20 90 Impact . | . . . Slashing . | . . . Piercing . | . . . Highest Corruption . | . . . Average Corruption . | . . . Corruption Purged . | . . . Corruption Blocked . | . . . Overload Shots . | . . . Overflow Damage 18 | . . 18 Projectiles . | . . . Explosions 18 | . . 18 Melee . | . . . Knockbacks . | . . . Impact . | . . . Kinetic . | . . . Secondary . | . . . Self-Inflicted Damage 79 | . . 79 Shots 3 | . . 3 Rammed . | . . . Targets Rammed . | . . . Kicked . | . . . Crushed . | . . . Highest Temperature 98 | 21 18 98 Average Temperature 32 | 9 12 41 Received Heat Transfer 204 | 12 . 192 Siege Activations . | . . . Martial Activations . | . . . Shielding Activations . | . . . Robots Disrupted . | . . . Combat Hostiles . | . . . Robots Corrupted . | . . . Combat Hostiles . | . . . Parts Fried . | . . . Impact Corruptions . | . . . Robots Melted . | . . . Combat Hostiles . | . . . Parts Melted . | . . . Heat Transferred . | . . . Parts Sabotaged . | . . . Parts Stolen . | . . . Parts Stripped . | . . . Power Chain Reactions . | . . . Alert | -11 -10 -10 ------- Run | Yrd Mat Min Maximum Alert Level . | . . . Low Security (%) 100 | 100 100 100 Level 1 . | . . . Level 2 . | . . . Level 3 . | . . . Level 4 . | . . . Level 5 . | . . . High Security . | . . . Max Security . | . . . Peak Influence 164 | 20 10 164 Initial 3 | . 3 . Average 42 | 4 1 79 Influence Increases 356 | 25 9 322 Destroy 0b10 Robot/C 200 | 20 . 180 Destroy 0b10 Robot/NC 10 | 5 5 . Destroy Leader 32 | . 2 30 Allied During Kill 17 | . . 17 Successful Hack 2 | . 2 . Destroy Structure 20 | . . 20 Partial Spotted 15 | . . 15 Lose Combat Pursuer 60 | . . 60 Influence Decreases 234 | 20 14 200 Entered New Map 2 | . 2 . Time Decay 132 | 20 12 100 Lost Part 60 | . . 60 Lost Ally 40 | . . 40 Squads Dispatched . | . . . Investigation . | . . . Extermination . | . . . Reinforcement . | . . . Assault . | . . . Garrison . | . . . Intercept . | . . . Searches Triggered . | . . . Construction Impeded . | . . . Haulers Reinforced . | . . . Active Scanning Responses . | . . . Cargo Convoy Interrupts . | . . . Stealth | -11 -10 -10 --------- Run | Yrd Mat Min Distress Signals . | . . . Communications Jammed . | . . . Distress Signals . | . . . Times Spotted 18 | 1 2 15 Peak Tracking Total 6 | 1 1 6 Tactical Retreats 3 | . . 3 ECM-based Alert Blocks 1 | . . 1 Traps | -11 -10 -10 ------- Run | Yrd Mat Min Traps Triggered . | . . . Indirectly . | . . . Trap Hack Attempts . | . . . Triggered . | . . . Disarmed . | . . . Reprogrammed . | . . . Reused . | . . . Traps Extracted . | . . . Installed . | . . . Triggered . | . . . Machines | -11 -10 -10 ---------- Run | Yrd Mat Min Machines Disabled . | . . . Max in Single Turn . | . . . Machines Repaired . | . . . Machines Dismantled . | . . . Machines Sabotaged . | . . . Overloaded Fab Kills . | . . . Hacking | -11 -10 -10 --------- Run | Yrd Mat Min Machines Accessed 2 | . 2 . Terminals 1 | . 1 . Fabricators . | . . . Repair Stations . | . . . Recycling Units 1 | . 1 . Scanalyzers . | . . . Garrison Access . | . . . Total Hacks 3 | . 3 . Successful 2 | . 2 . Failed 1 | . 1 . Catastrophic . | . . . Database Lockouts . | . . . Manual . | . . . Terminals 2 | . 2 . Fabricators . | . . . Repair Stations . | . . . Recycling Units 1 | . 1 . Scanalyzers . | . . . Garrison Access . | . . . Terminal Hacks 1 | . 1 . Record 1 | . 1 . Fabricator Hacks . | . . . Repair Station Hacks . | . . . Recycling Unit Hacks 1 | . 1 . Retrieve Components 1 | . 1 . Scanalyzer . | . . . Garrison Access Hacks . | . . . Unauthorized Hacks . | . . . Terminals . | . . . Fabricators . | . . . Repair Stations . | . . . Recycling Units . | . . . Scanalyzers . | . . . Garrison Access . | . . . Data Cores Recovered . | . . . Used . | . . . Hacking Detections 1 | . 1 . Full Trace Events . | . . . Feedback Events . | . . . Feedback Blocked . | . . . Robot Schematics Acquired . | . . . Robots Built . | . . . Authchips . | . . . Time . | . . . Total Robot Build Rating . | . . . Part Schematics Acquired . | . . . Parts Built . | . . . Authchips . | . . . Time . | . . . Total Part Build Rating . | . . . Part Studies Acquired . | . . . Parts Repaired . | . . . Time . | . . . Parts Recycled . | . . . Recycled Matter . | . . . Retrieved Matter . | . . . Retrieved Components 2 | . 2 . Parts Scanalyzed . | . . . Part Schematics Acquired . | . . . Parts Damaged . | . . . Bothacking | -11 -10 -10 ------------ Run | Yrd Mat Min Used RIF Installer . | . . . Robots Hacked . | . . . Non-combat . | . . . Combat . | . . . Robot Hacks Applied . | . . . Relay Couplers Released . | . . . Fabnet Peak Effective % . | . . . Robots Rewired . | . . . Allies Hacked . | . . . Hacks Repelled . | . . . Allies | -11 -10 -10 -------- Run | Yrd Mat Min Total Allies 2 | . . 2 Largest Group 2 | . . 2 Highest-Rated Group 47 | . . 47 Highest-Rated Ally 31 | . . 31 Total Orders . | . . . Ally Attacks 15 | . . 15 Total Damage 230 | . . 230 Kills 5 | . . 5 Allies Corrupted . | . . . Allies Melted . | . . . Intel | -11 -10 -10 ------- Run | Yrd Mat Min Active Infowar (turns) 278 | 15 93 170 Terrain 45 | 6 39 . Seismic 278 | 15 93 170 ECM 171 | . 54 117 Robot Analysis Total . | . . . Derelict Logs Recovered 1 | . . 1 Drone Launches . | . . . Drone Recoveries . | . . . Exploration | -11 -10 -10 ------------- Run | Yrd Mat Min Turns Passed 417 | 106 93 218 Spaces Moved 428 | 75 114 239 Core 63 | 15 . 48 Treads . | . . . Legs 78 | 60 18 . Wheels . | . . . Hover 287 | . 96 191 Flight . | . . . Fastest Speed 50 | 50 56 50 Average Speed 66 | 106 66 54 Slowest Speed 130 | 120 130 56 Overloaded Moves . | . . . Propulsion Burnouts . | . . . Robots Hopped . | . . . Potential Cave-ins . | . . . Cave-ins Triggered . | . . . Exploration Rate (%) 25 | 6 22 47 Regions Visited 2 Branch Regions 1 Pre-discovered Areas . | . . . Known Exits Taken . | . . . Unknown Exits Taken 2 | 1 1 . Scrap Searched 1 | . . 1 Spaces Dug . | . . . Terrain Destroyed 19 | . . 19 Melee . | . . . Projectile . | . . . AOE 19 | . . 19 Terrain Rammed . | . . . Walls Destroyed . | . . . Machines Disabled . | . . . Actions | -11 -10 -10 --------- Run | Yrd Mat Min Total 523 | 88 126 309 Wait 53 | . 1 52 Move 426 | 74 113 239 Hop . | . . . Pick Up 7 | 2 4 1 Fast Attach 7 | 7 . . Attach 1 | . . 1 Detach 2 | . . 2 Swap 6 | . 5 1 Drop 4 | . 2 2 Fire 17 | 5 1 11 Melee . | . . . Ram . | . . . Kick . | . . . Crush . | . . . Escape Stasis . | . . . Rewire . | . . . Trap . | . . . Miscellaneous . | . . . Route ------- -11/Scrapyard -10/Materials -10/Mines History --------- Turn | Location | Event 2 | -11/Scrapyard | Met Revision 17 59 | -11/Scrapyard | Discovered new exit (range 8) 107 | -11/Scrapyard | Entered Materials 191 | -10/Materials | Discovered new exit (range 16) 200 | -10/Materials | Entered Mines 239 | -10/Mines | Received a Rocket Launcher from a helpful Derelict 249 | -10/Mines | Learned Materials garrison access intel 384 | -10/Mines | Core integrity fell below 50% 410 | -10/Mines | Lost 6 parts (1p1n1u3w) 414 | -10/Mines | Core integrity fell below 20% 418 | -10/Mines | Destroyed by G-47 Trooper with Particle Gun Last Messages --------------- 00308_ Switching to secondary target: S-10 Pest. 00324_ S-10 Pest destroyed. 00329_ K-01 Serf collects debris. 00340_ K-01 Serf cleans the Pressure Siphon. 00340_ G-47 Trooper: "SECOND INTRUDER APPROACHING. ELIMINATE." 00368_ EM Pulse Gun destroyed. 00370_ Hover Unit destroyed. 00370_ Destroyed Hover Unit. 00370_ Seismic Detector destroyed. 00370_ Destroyed Seismic Detector. 00372_ Y-45 Defender destroyed. [Achievement: Resistances Are Futile] 00373_ Lgt. Ion Engine destroyed. 00374_ The unstable cave ceiling collapses. 00376_ Critical hit (Burn: +37). 00376_ Rocket Launcher destroyed. 00378_ Dropped Mining Laser. 00379_ EM Pulse Gun destroyed. 00387_ K-01 Serf collects debris. Map ----- +----------------------------------------------------+ | ???## #??????????????? ##??? | | ??## ##?????????????? #??? | | ??# | #####?????????? ##?? | | ??# [ ##????????# ##? | | ??# ##??????## #? | | ?# ####??## #? | | ?# ## #### #?? | | ?# #### ## #?? | | ?# ### ####??# #??# | | ?####???####?????## #?# | | ??????????????????## ## | | ???????????????????### | | ?????????????????????## | | ?????????????????###### | | ?????????????????# ### | | ?????????????????# #### ##?? | | ?????????????????# #??#### ##?? | | ?????????????????# #?????## ##? | | ?????????????????# #??????### ## | | ?????????????????# #????????## | | ?????????????????# #?????????## # | | ???????????####### #??????????## ## | | ???????????# #???????????##### | | ???????????#g########?????????????## | | ???????????# #???????????????????## | | ?????#######@#???????????????????# | | ??#$ g #????????????# | | ?????#########?????????????# | | ???????????????????????????## ### | | ????????????????????????????# #??# | | ???????????????????????????# #??? | | ??????????????????????????? ??? | | ??????????????????????????? ??? | | ???????????????????????????? ???# | | ?????????????????????????????????# | | ?????????????????????????????????## | | ??????????????????????????????????# | | ??????????????????????????????????? | | ????????????????????????????????????? | | ????????????????????????????????????? | | ????????????????????????????????????? | | ????????????????????????????????????? | | ????????????????????????????????????? | | ????????????????????????????????????? | | ????????????????????????????????????? | | ????????????????????????????????????? | | ????????????????????????????????????? | | ????????????????????????????????????? | | ????????????????????????????????????? | | ????????????????????????????????????? | +----------------------------------------------------+ Best States ------------- Heat Dissipation 25 Energy Generation 10 Energy Capacity 250 Matter Stores 300 Matter Capacity 300 Sight Range 16 Terrain Scan Range 16 Terrain Scan Density 10 ECM Strength 1 Evasion (%) 55 Item Schematics ----------------- None Robot Schematics ------------------ None Fabricated ------------ Nothing Repaired ---------- Nothing Studied --------- None Alien Tech Used ----------------- None Achievements -------------- DATA ERROR: Steam Global Achievement% Resistances Are Futile Challenges ------------ None Game ------ Seed InterceptMatterWartreads Manual? 0 Play Time 00:10:59 Cumulative 1.7 hours Start 2025.12.16 @ 20:09:52 End 2025.12.16 @ 20:21:21 Sessions 1 Manual Loads 0 Difficulty Rogue Special Mode None Game No. 2 Rogue 2 Adventurer 0 Explorer 0 Win Type - Total 0 Types 0/0/0/0/0/0/0/0/0/0 Lore% 2 Gallery% 3 Achievement% 5 Wizard Run 0 Options --------- Layout 2 ASCII 0 Keyboard 0 Movement Mouse Keybinds 0 Fullscreen 1 Font 24/Smallcaps Map View 50x44 Zoom Use 0% Tactical HUD 1 Map Filters NONE Filters NONE Steam 1 RUN: 788d08fe-28d5-47e5-b545-83cfd3884e09